bitfinex-derivatives/quotes_SOLF0:USTF0_20250114
["timestamp","ask_amount","ask_price","bid_price","bid_amount"]
[1736814255789,2.7355,182.84,182.77,1.6247]
[1736814255989,2.7355,182.84,182.8,2.7361]
[1736814256689,2.7355,182.84,182.77,1.6247]
[1736814256889,2.7357,182.83,182.79,2.7363]
[1736814257288,12.89985976,182.84,182.76,6.0624]
[1736814259094,2.7362,182.8,182.76,6.0624]
[1736814259597,12.89985976,182.84,182.76,1.709]
[1736814259894,1.6093,182.91,182.74,2.737]
[1736814259895,2.7365,182.78,182.74,2.737]
[1736814260996,2.7363,182.79,182.74,2.737]
[1736814261695,2.7363,182.79,182.75,2.7369]
[1736814262195,2.7365,182.78,182.74,2.737]
[1736814262593,12.89985976,182.81,182.72,1.6647]
[1736814262793,2.7367,182.77,182.72,1.6647]
[1736814263300,1.5604,182.84,182.73,12.89985976]
[1736814263696,3.1363,182.85,182.73,12.89985976]
[1736814263998,2.7359,182.82,182.78,2.7364]
[1736814264594,2.7359,182.82,182.77,2.7365]
[1736814264894,2.7359,182.82,182.73,12.89985976]
[1736814265397,1.5637,182.85,182.76,12.89985976]
[1736814265597,2.7357,182.83,182.76,12.89985976]
[1736814266096,2.7357,182.83,182.78,2.7363]
[1736814267401,2.7356,182.84,182.8,2.7361]
[1736814267701,14.48725976,182.91,182.79,12.89985976]
[1736814267893,2.7352,182.87,182.82,2.7358]
[1736814268094,12.89985976,182.88,182.79,12.89985976]
[1736814268295,12.89985976,182.88,182.76,18.79985976]
[1736814269095,12.89985976,182.88,182.76,5.9]
[1736814269302,12.89985976,182.88,182.77,2.7366]
[1736814269502,12.89985976,182.88,182.76,5.9]
[1736814269897,12.89985976,182.88,182.78,2.7364]
[1736814270094,12.89985976,182.85,182.76,5.9]
[1736814270605,2.7361,182.81,182.76,8.6367]
[1736814272206,2.7363,182.8,182.76,8.6367]
[1736814273808,12.89985976,182.82,182.72,1.6647]
[1736814274305,12.89985976,182.82,182.73,2.7372]
[1736814274306,2.7367,182.77,182.73,2.7372]
[1736814274703,12.89985976,182.82,182.73,2.7372]
[1736814276006,2.7367,182.77,182.73,2.7372]
[1736814276904,2.7367,182.77,182.74,2.737]
[1736814277305,12.89985976,182.82,182.72,1.6647]
[1736814277510,12.89985976,182.82,182.7,1.7035]
[1736814277805,12.89985976,182.79,182.7,1.7035]
[1736814277997,12.89985976,182.79,182.7,4.4411]
[1736814278199,12.89985976,182.79,182.68,12.89985976]
[1736814278608,12.89985976,182.79,182.68,15.63765976]
[1736814279313,2.7371,182.74,182.69,2.7377]
[1736814280811,2.7368,182.76,182.71,2.7375]
[1736814281108,14.50505976,182.82,182.71,12.89985976]
[1736814281308,111.87293775,182.83,182.71,18.77985976]
[1736814281709,2.7361,182.81,182.76,2.7366]
[1736814283008,2.7362,182.8,182.76,2.7366]
[1736814283503,1.6747,182.83,182.74,15.63675976]
[1736814283808,2.7363,182.79,182.74,15.63675976]
[1736814284409,2.7366,182.77,182.72,2.7373]
[1736814284809,2.7366,182.77,182.71,18.77985976]
[1736814286311,2.7366,182.77,182.73,2.7372]
[1736814286511,2.7363,182.79,182.71,18.77985976]
[1736814286704,2.7363,182.79,182.74,2.7369]
[1736814287515,2.7362,182.8,182.74,2.7369]
[1736814287704,12.89985976,182.82,182.74,2.7369]
[1736814288110,2.7364,182.79,182.74,2.7369]
[1736814288306,12.89985976,182.82,182.74,2.7369]
[1736814288710,2.7364,182.79,182.74,2.7369]
[1736814289114,2.7365,182.78,182.74,2.7369]
[1736814290119,2.7368,182.76,182.72,2.7373]
[1736814290313,12.89985976,182.79,182.67,18.75985976]
[1736814290905,12.89985976,182.79,182.7,2.7375]
[1736814291105,12.89985976,182.79,182.67,18.75985976]
[1736814291308,1.6747,182.83,182.7,12.89985976]
[1736814291515,12.89985976,182.82,182.7,12.89985976]
[1736814291917,2.7366,182.78,182.73,2.7371]
[1736814292310,12.89985976,182.82,182.74,2.7369]
[1736814292509,2.7361,182.81,182.73,12.89985976]
[1736814293010,1.6747,182.83,182.75,2.7368]
[1736814293211,2.7362,182.8,182.75,2.7368]
[1736814294308,2.7363,182.79,182.75,2.7368]
[1736814294915,2.7363,182.79,182.76,2.7367]
[1736814300519,1.6747,182.83,182.75,2.7368]
[1736814300719,12.89985976,182.82,182.75,2.7368]
[1736814300920,12.89985976,182.82,182.7,12.89985976]
[1736814301122,2.7367,182.77,182.73,2.7371]
[1736814301321,2.7367,182.77,182.7,12.89985976]
[1736814302120,2.7367,182.77,182.74,2.737]
[1736814302518,12.89985976,182.82,182.73,12.89985976]
[1736814302719,2.7361,182.8,182.77,2.7365]
[1736814303117,2.7364,182.79,182.69,5.84]
[1736814303415,1.6747,182.83,182.75,2.7368]
[1736814303622,2.7364,182.79,182.75,2.7368]
[1736814304816,2.7364,182.79,182.76,2.7367]
[1736814305517,1.6747,182.83,182.72,12.89985976]
[1736814305717,1.706,182.87,182.71,5.82]
[1736814305718,1.6251,182.88,182.78,12.89985976]
[1736814305924,1.6251,182.88,182.81,12.89985976]
[1736814306117,150.5059882,182.89,182.81,12.89985976]
[1736814306423,150.5059882,182.89,182.84,12.89985976]
[1736814306922,2.7347,182.9,182.85,2.7353]
[1736814307116,1.6251,182.95,182.84,12.89985976]
[1736814307318,2.7341,182.94,182.88,2.7348]
[1736814307521,1.6251,182.95,182.88,2.7348]
[1736814308822,4.3591,182.95,182.88,2.7348]
[1736814309023,1.6251,182.95,182.88,2.7348]
[1736814309623,2.7342,182.93,182.88,2.7348]
[1736814310320,2.7342,182.93,182.87,15.63495976]
[1736814311217,2.7343,182.92,182.87,15.63495976]
[1736814312318,12.89985976,182.97,182.87,12.89985976]
[1736814312524,2.7342,182.94,182.9,2.7346]
[1736814314426,2.7342,182.94,182.87,12.89985976]
[1736814314626,2.7342,182.94,182.89,2.7348]
[1736814317928,2.7342,182.94,182.9,2.7346]
[1736814318326,110.0940118,183.01,182.9,12.89985976]
[1736814318527,110.0940118,183.01,182.93,2.7342]
[1736814318725,2.7333,183.0,182.93,12.89985976]
[1736814319129,2.7333,183.0,182.95,2.7338]
[1736814319731,2.7333,182.99,182.95,2.7338]
[1736814320531,110.0940118,183.01,182.93,18.69985976]
[1736814320734,110.0940118,183.01,182.93,5.8]
[1736814321028,2.7333,182.99,182.94,2.7339]
[1736814322531,110.0940118,183.01,182.94,2.7339]
[1736814322729,2.7333,182.99,182.94,2.7339]
[1736814323827,2.7335,182.98,182.94,2.7339]
[1736814325735,2.7331,183.01,182.93,18.69985976]
[1736814325937,4.14426865,183.05,182.93,18.69985976]
[1736814327136,2.733,183.02,182.97,2.7335]
[1736814327538,4.14426865,183.05,182.93,18.69985976]
[1736814327838,2.7333,182.99,182.94,2.7339]
[1736814328137,4.14426865,183.05,182.93,18.69985976]
[1736814328538,2.7333,183.0,182.95,2.7339]
[1736814329747,4.14426865,183.05,182.95,2.7339]
[1736814329946,2.7333,182.99,182.95,2.7339]
[1736814331045,4.14426865,183.05,182.97,2.7336]
[1736814331850,4.14426865,183.05,182.93,18.69985976]
[1736814332552,12.89985976,183.03,182.88,4.8485]
[1736814332751,12.89985976,183.0,182.88,23.52835976]
[1736814333257,2.734,182.95,182.91,2.7345]
[1736814333443,12.89985976,183.0,182.91,2.7345]
[1736814334348,2.734,182.95,182.91,2.7345]
[1736814334652,2.734,182.95,182.92,2.7343]
[1736814335243,2.734,182.95,182.88,23.52835976]
[1736814335449,2.7341,182.94,182.91,2.7344]
[1736814335656,2.7341,182.94,182.88,23.52835976]
[1736814335950,2.7341,182.94,182.9,2.7345]
[1736814337049,2.7344,182.92,182.89,2.7347]
[1736814337447,12.89985976,182.97,182.88,1.578]
[1736814337646,12.89985976,182.97,182.85,12.89985976]
[1736814338151,2.7342,182.93,182.89,2.7347]
[1736814338350,1.6314,182.99,182.88,12.89985976]
[1736814338550,1.6314,182.99,182.89,1.5983]
[1736814339650,2.7337,182.96,182.9,2.7345]
[1736814340048,1.6314,182.99,182.9,2.7345]
[1736814340453,2.7339,182.95,182.9,2.7345]
[1736814340750,12.89985976,182.97,182.85,12.89985976]
[1736814340955,1.6993,182.96,182.85,12.89985976]
[1736814341152,2.7347,182.9,182.85,15.63525976]
[1736814341952,12.89985976,182.94,182.82,1.6814]
[1736814342152,12.89985976,182.94,182.82,14.58125976]
[1736814342553,2.7351,182.87,182.82,17.31695976]
[1736814343353,12.89985976,182.94,182.82,17.31695976]
[1736814343554,7.4993,182.96,182.82,14.58125976]
[1736814343852,12.89985976,182.88,182.77,12.89985976]
[1736814344056,2.7359,182.82,182.77,12.89985976]
[1736814344551,2.7359,182.82,182.78,2.7364]
[1736814344952,2.7359,182.82,182.77,12.89985976]
[1736814345753,2.7359,182.82,182.77,15.63635976]
[1736814347758,14.45845976,182.88,182.77,12.89985976]
[1736814347955,17.68095976,182.88,182.77,12.89985976]
[1736814349656,2.7361,182.81,182.77,12.89985976]
[1736814349958,17.68095976,182.88,182.77,12.89985976]
[1736814353066,2.7361,182.81,182.77,12.89985976]
[1736814353267,17.68095976,182.88,182.77,12.89985976]
[1736814353762,2.7361,182.81,182.76,2.7367]
[1736814353969,17.68095976,182.88,182.76,2.7367]
[1736814354370,2.7361,182.81,182.76,2.7367]
[1736814354668,17.68095976,182.88,182.76,2.7367]
[1736814355467,17.68095976,182.88,182.77,2.7365]
[1736814356061,2.736,182.82,182.74,17.76555976]
[1736814356265,17.68095976,182.88,182.78,2.7363]
[1736814356760,2.7358,182.83,182.78,2.7363]
[1736814357370,2.7358,182.83,182.77,12.89985976]
[1736814357571,2.7358,182.83,182.79,2.7363]
[1736814358167,14.45845976,182.88,182.77,12.89985976]
[1736814358366,2.7355,182.85,182.8,2.736]
[1736814359068,14.45845976,182.88,182.8,2.736]
[1736814359267,2.7359,182.82,182.78,2.7364]
[1736814359763,3.1525,182.93,182.74,4.8657]
[1736814359764,244.3259882,183.0,182.8,12.89985976]
[1736814359963,244.3259882,183.0,182.86,12.89985976]
[1736814359964,12.89985976,182.98,182.86,12.89985976]
[1736814360362,12.89985976,182.88,182.68,5.78]
[1736814360568,12.89985976,182.88,182.77,12.89985976]
[1736814360770,12.89985976,182.88,182.78,1.576]
[1736814361071,2.7357,182.83,182.78,4.3123]
[1736814361370,12.89985976,182.88,182.78,1.576]
[1736814361765,14.55475976,182.88,182.78,1.576]
[1736814362171,2.7352,182.87,182.82,2.7357]
[1736814362370,18.70135901,182.94,182.83,12.89985976]
[1736814363268,2.7351,182.88,182.82,2.7357]
[1736814363561,18.70135901,182.94,182.82,15.63555976]
[1736814363762,18.70135901,182.94,182.82,12.89985976]
[1736814363971,4.14659925,182.94,182.82,12.89985976]
[1736814364568,2.7349,182.89,182.84,2.7355]
[1736814365070,12.89985976,182.93,182.82,12.89985976]
[1736814365471,3.2164,182.92,182.82,12.89985976]
[1736814365970,12.89985976,182.9,182.81,5.8]
[1736814366167,12.89985976,182.87,182.78,1.576]
[1736814366674,12.89985976,182.87,182.79,2.7362]
[1736814367575,12.89985976,182.87,182.8,2.7361]
[1736814367770,12.89985976,182.9,182.8,2.7361]
[1736814368272,2.7355,182.85,182.8,2.7361]
[1736814369172,7.3637,182.91,182.78,1.576]
[1736814369173,12.89985976,182.87,182.78,1.576]
[1736814369477,12.89985976,182.87,182.78,4.3124]
[1736814369871,2.7358,182.83,182.78,4.3124]
[1736814370271,12.89985976,182.9,182.79,12.89985976]
[1736814370472,7.3637,182.91,182.79,12.89985976]
[1736814370672,7.3637,182.91,182.83,2.7356]
[1736814371378,2.735,182.88,182.83,2.7356]
[1736814371778,2.7351,182.87,182.83,2.7356]
[1736814372175,7.3637,182.91,182.79,12.89985976]
[1736814372379,2.7357,182.84,182.78,1.576]
[1736814372578,12.89985976,182.87,182.78,1.576]
[1736814373081,2.7357,182.84,182.78,1.576]
[1736814373278,12.89985976,182.87,182.78,1.576]
[1736814373578,2.7357,182.84,182.79,2.7363]
[1736814374580,2.7357,182.83,182.79,2.7363]
[1736814379381,12.89985976,182.84,182.73,14.49225976]
[1736814380184,12.89985976,182.87,182.73,14.49225976]
[1736814380386,12.89985976,182.87,182.76,12.89985976]
[1736814380884,2.7358,182.83,182.78,2.7364]
[1736814381285,12.89985976,182.87,182.76,12.89985976]
[1736814381487,12.89985976,182.87,182.73,14.49225976]
[1736814381785,12.89985976,182.84,182.73,14.49225976]
[1736814382086,2.7358,182.82,182.76,12.89985976]
[1736814382689,2.736,182.81,182.77,2.7365]
[1736814384182,12.89985976,182.87,182.73,14.49225976]
[1736814384379,12.89985976,182.84,182.73,14.49225976]
[1736814384986,2.736,182.81,182.75,2.7369]
[1736814385187,12.89985976,182.84,182.75,2.7369]
[1736814385486,12.89985976,182.84,182.73,14.49225976]
[1736814385792,2.7362,182.8,182.76,2.7367]
[1736814386282,12.89985976,182.84,182.76,2.7367]
[1736814386483,2.7363,182.79,182.76,2.7367]
[1736814388288,2.7363,182.79,182.73,14.49225976]
[1736814388490,2.7363,182.79,182.75,2.7368]
[1736814388891,12.89985976,182.84,182.75,2.7368]
[1736814388892,2.7365,182.78,182.75,2.7368]
[1736814392091,5.47,182.88,182.73,14.49225976]
[1736814392388,150.5059882,182.9,182.82,12.89985976]
[1736814392899,153.2407882,182.9,182.84,2.7355]
[1736814393084,150.5059882,182.9,182.82,3.3039]
[1736814393289,8.27308429,182.89,182.82,11.57698429]
[1736814393488,8.27308429,182.87,182.82,11.57698429]
[1736814393693,2.7355,182.85,182.82,8.27308429]
[1736814393887,2.7355,182.85,182.8,8.27308429]
[1736814395088,2.7353,182.86,182.82,8.27308429]
[1736814395495,12.92572492,182.92,182.81,2.7359]
[1736814395794,2.7355,182.85,182.8,15.66182492]
[1736814398093,2.7351,182.87,182.83,2.7357]
[1736814399597,12.92572492,182.92,182.8,12.92572492]
[1736814399797,2.7349,182.89,182.84,2.7354]
[1736814400097,12.92572492,182.92,182.84,2.7354]
[1736814400290,2.7349,182.89,182.84,2.7354]
[1736814400897,2.7349,182.88,182.84,2.7354]
[1736814402295,12.92572492,182.92,182.81,3.2046]
[1736814402490,1.6178,182.91,182.81,3.2046]
[1736814402999,2.7353,182.86,182.81,5.9405]
[1736814403295,2.7353,182.86,182.81,3.2046]
[1736814403695,1.6178,182.91,182.81,3.2046]
[1736814403696,2.7354,182.85,182.82,2.7358]
[1736814404892,1.6178,182.91,182.78,12.92572492]
[1736814404893,12.92572492,182.89,182.78,12.92572492]
[1736814405100,12.92572492,182.86,182.75,14.62662492]
[1736814405900,12.92572492,182.86,182.75,1.7009]
[1736814406103,12.92572492,182.83,182.74,1.6559]
[1736814407099,2.7364,182.79,182.75,2.7369]
[1736814409305,12.92572492,182.8,182.7,12.92572492]
[1736814409599,2.7369,182.76,182.7,12.92572492]
[1736814409899,2.7369,182.76,182.71,2.7374]
[1736814410402,2.7369,182.75,182.71,2.7374]
[1736814411003,2.7369,182.75,182.72,2.7373]
[1736814412699,2.7365,182.78,182.73,2.7371]
[1736814412894,2.7365,182.78,182.7,12.92572492]
[1736814413096,2.7365,182.78,182.73,12.92572492]
[1736814413605,2.7361,182.8,182.76,2.7367]
[1736814414003,20.30042492,182.86,182.76,2.7367]
[1736814414904,2.7365,182.78,182.7,12.92572492]
[1736814415297,12.92572492,182.83,182.7,12.92572492]
[1736814415698,2.7363,182.8,182.73,2.7371]
[1736814415902,12.92572492,182.83,182.7,12.92572492]
[1736814416506,2.7368,182.76,182.72,2.7373]
[1736814417001,2.7369,182.75,182.72,2.7373]
[1736814419105,2.7371,182.74,182.71,2.7375]
[1736814419603,2.7374,182.72,182.69,2.7378]
[1736814419803,12.92572492,182.74,182.64,12.92572492]
[1736814420003,12.92572492,182.74,182.63,3.26]
[1736814420213,12.92572492,182.71,182.63,1.6636]
[1736814420503,12.92572492,182.71,182.62,1.7022]
[1736814420708,2.7383,182.66,182.62,4.4409]
[1736814420911,12.92572492,182.71,182.62,1.7022]
[1736814421302,2.7384,182.66,182.61,2.739]
[1736814422314,2.7384,182.66,182.6,18.60913382]
[1736814422512,2.7381,182.67,182.62,2.7388]
[1736814424308,1.5757,182.7,182.6,18.60913382]
[1736814424508,12.92572492,182.71,182.6,5.6834089]
[1736814424707,12.92572492,182.71,182.61,12.92572492]
[1736814424909,2.7377,182.7,182.65,2.7383]
[1736814426014,2.7377,182.7,182.66,2.7382]
[1736814427410,12.92572492,182.74,182.66,2.7382]
[1736814427630,2.7375,182.71,182.66,2.7382]
[1736814428621,12.92572492,182.74,182.66,2.7382]
[1736814428812,2.7377,182.7,182.66,2.7382]
[1736814430318,12.92572492,182.74,182.64,12.92572492]
[1736814430920,2.7372,182.73,182.68,2.7378]
[1736814431620,12.92572492,182.74,182.68,2.7378]
[1736814431920,2.7373,182.72,182.68,2.7378]
[1736814433215,2.7372,182.73,182.69,2.7377]
[1736814433609,2.737,182.74,182.7,2.7375]
[1736814433819,12.92572492,182.77,182.65,3.2784]
[1736814434016,12.92572492,182.77,182.67,12.92572492]
[1736814434214,2.7368,182.76,182.67,12.92572492]
[1736814434416,12.92572492,182.8,182.7,12.92572492]
[1736814434919,2.7365,182.78,182.74,2.737]
[1736814435314,2.7366,182.77,182.73,2.7371]
[1736814437617,12.92572492,182.77,182.65,3.2784]
[1736814437818,12.92572492,182.74,182.65,3.2784]
[1736814438116,12.92572492,182.77,182.65,3.2784]
[1736814438919,2.7371,182.74,182.65,3.2784]
[1736814439319,2.7371,182.74,182.7,2.7376]
[1736814441512,12.92572492,182.77,182.7,2.7376]
[1736814441713,12.92572492,182.77,182.65,3.2784]
[1736814441916,12.92572492,182.73,182.65,3.2784]
[1736814442324,2.7376,182.7,182.67,2.7381]
[1736814442717,12.92572492,182.73,182.65,3.2784]
[1736814443115,1.7009,182.76,182.65,3.2784]
[1736814443528,2.7372,182.74,182.65,3.2784]
[1736814443716,12.92572492,182.77,182.67,12.92572492]
[1736814444226,2.737,182.75,182.71,2.7374]
[1736814445323,2.7368,182.76,182.73,2.7371]
[1736814445929,2.7368,182.76,182.72,2.7373]
[1736814449041,2.737,182.75,182.71,2.7374]
[1736814450057,12.92572492,182.8,182.71,2.7374]
[1736814450272,12.92572492,182.74,182.65,3.2784]
[1736814450643,2.7376,182.71,182.67,2.738]
[1736814450850,2.7376,182.71,182.65,3.2784]
[1736814450851,12.92572492,182.74,182.65,3.2784]
[1736814451048,5.78,182.76,182.65,3.2784]
[1736814451049,12.92572492,182.71,182.65,3.2784]
[1736814451948,12.92572492,182.71,182.65,6.0168]
[1736814452853,12.92572492,182.71,182.65,2.7384]
[1736814453042,2.7379,182.69,182.65,2.7384]
[1736814458134,1.6368,182.75,182.61,12.92572492]
[1736814458338,2.7373,182.72,182.68,2.7378]
[1736814458540,12.92572492,182.76,182.64,12.92572492]
[1736814459134,2.7377,182.7,182.66,2.7382]
[1736814461840,2.7374,182.72,182.64,12.92572492]
[1736814462242,4.14982479,182.79,182.67,12.92572492]
[1736814462444,4.14982479,182.79,182.67,18.66572492]
[1736814462645,4.14982479,182.79,182.7,12.92572492]
[1736814463144,2.7368,182.76,182.73,2.7371]
[1736814463438,4.14982479,182.79,182.67,18.66572492]
[1736814463645,2.737,182.75,182.71,2.7374]
[1736814463835,4.14982479,182.79,182.7,12.92572492]
[1736814464242,2.7368,182.76,182.7,12.92572492]
[1736814464839,2.7368,182.76,182.72,2.7372]
[1736814465145,2.7369,182.75,182.72,2.7372]
[1736814467047,2.7369,182.75,182.67,18.66572492]
[1736814467245,2.7369,182.75,182.71,2.7374]
[1736814468248,4.14982479,182.79,182.67,18.66572492]
[1736814468439,2.7368,182.76,182.67,18.66572492]
[1736814469848,2.7368,182.76,182.72,2.7372]
[1736814470148,2.7368,182.76,182.67,18.66572492]
[1736814471148,4.14982479,182.79,182.67,18.66572492]
[1736814471350,2.737,182.75,182.72,2.7372]
[1736814472447,2.7371,182.74,182.71,2.7375]
[1736814473454,12.92572492,182.74,182.65,4.9744]
[1736814473947,4.14982479,182.79,182.67,12.92572492]
[1736814474251,20.38772492,182.82,182.7,12.92572492]
[1736814474453,2.7365,182.78,182.75,2.7369]
[1736814474855,20.38772492,182.82,182.75,2.7369]
[1736814475067,2.7362,182.8,182.75,2.7369]
[1736814475248,14.64772492,182.82,182.75,2.7369]
[1736814476054,2.7363,182.79,182.75,2.7369]
[1736814479454,2.7363,182.79,182.76,2.7367]
[1736814479855,12.92572492,182.82,182.73,12.92572492]
[1736814479856,2.7359,182.82,182.73,12.92572492]
[1736814480154,2.7359,182.82,182.78,2.7364]
[1736814480362,2.736,182.81,182.74,4.9148]
[1736814480555,12.92572492,182.85,182.74,4.9148]
[1736814480859,12.92572492,182.85,182.75,2.7368]
[1736814481361,12.92572492,182.85,182.74,4.9148]
[1736814481562,2.7362,182.8,182.76,2.7366]
[1736814481761,12.92572492,182.85,182.74,4.9148]
[1736814482765,2.7363,182.79,182.75,2.7368]
[1736814484862,12.92572492,182.82,182.7,18.68572492]
[1736814485264,12.92572492,182.79,182.7,5.76]
[1736814485464,2.7367,182.77,182.73,2.7371]
[1736814485961,2.7369,182.76,182.72,2.7373]
[1736814488666,2.7369,182.75,182.72,2.7373]
[1736814490969,12.92572492,182.79,182.72,2.7373]
[1736814491170,12.92572492,182.82,182.7,12.92572492]
[1736814491868,2.7364,182.79,182.75,2.7369]
[1736814492669,12.92572492,182.82,182.75,2.7369]
[1736814492670,2.7365,182.78,182.75,2.7369]
[1736814493173,12.92572492,182.82,182.73,2.7371]
[1736814493368,12.92572492,182.79,182.69,1.5906]
[1736814493973,2.737,182.75,182.71,2.7375]
[1736814497082,2.737,182.75,182.72,2.7373]
[1736814497578,2.737,182.75,182.69,1.5906]
[1736814497777,2.737,182.75,182.71,2.7374]
[1736814500482,2.7368,182.76,182.72,2.7372]
[1736814500781,12.92572492,182.79,182.72,2.7372]
[1736814500976,12.92572492,182.79,182.69,1.5906]
[1736814501186,12.92572492,182.76,182.67,5.72]
[1736814501886,12.92572492,182.79,182.67,18.64572492]
[1736814502183,2.7368,182.76,182.71,2.7374]
[1736814502388,12.92572492,182.79,182.67,18.64572492]
[1736814503083,12.92572492,182.76,182.67,5.72]
[1736814503389,2.7375,182.72,182.68,2.7379]
[1736814503689,12.92572492,182.76,182.66,3.3008]
[1736814503877,12.92572492,182.76,182.66,6.0389]
[1736814504586,2.7377,182.7,182.66,6.0389]
[1736814504887,2.7377,182.7,182.66,3.3008]
[1736814505088,2.7377,182.7,182.67,2.7381]
[1736814506989,12.92572492,182.76,182.66,3.3008]
[1736814507187,12.92572492,182.7,182.63,64.86807092]
[1736814507488,12.92572492,182.67,182.59,10.90649797]
[1736814507889,2.7385,182.65,182.61,2.739]
[1736814508487,2.7386,182.64,182.61,2.739]
[1736814509392,2.7384,182.65,182.62,2.7388]
[1736814510088,2.7385,182.64,182.61,2.7389]
[1736814510789,12.92572492,182.67,182.6,8.4225089]
[1736814510790,2.7387,182.63,182.6,8.4225089]
[1736814511992,2.7389,182.62,182.6,5.6834089]
[1736814512189,12.92572492,182.67,182.6,5.6834089]
[1736814512588,2.7389,182.62,182.6,5.6834089]
[1736814512794,12.92572492,182.67,182.59,6.0384]
[1736814513494,12.92572492,182.67,182.6,2.7391]
[1736814513794,12.92572492,182.67,182.59,3.2991]
[1736814515097,2.7386,182.64,182.6,2.7391]
[1736814516189,2.7387,182.63,182.59,6.0383]
[1736814517189,2.7388,182.62,182.58,2.7394]
[1736814517394,11.03462521,182.62,182.58,2.7394]
[1736814517588,8.29582521,182.62,182.56,9.91992521]
[1736814517791,2.7391,182.61,182.57,2.7396]
[1736814518194,8.29582521,182.6,182.54,73.19402958]
[1736814518395,11.03512521,182.6,182.56,2.7397]
[1736814518597,8.29582521,182.6,182.56,2.7397]
[1736814519287,2.7393,182.59,182.55,2.7398]
[1736814520797,2.7393,182.59,182.56,2.7397]
[1736814525396,12.96602033,182.65,182.54,77.8642247]
[1736814525798,2.7389,182.62,182.54,77.8642247]
[1736814526194,12.96602033,182.65,182.54,77.8642247]
[1736814526400,2.7392,182.6,182.57,2.7395]
[1736814527203,12.96602033,182.65,182.54,77.8642247]
[1736814527398,12.96602033,182.65,182.56,2.7396]
[1736814527794,2.7401,182.54,182.52,3.2191]
[1736814527999,12.96602033,182.59,182.52,3.2191]
[1736814528194,12.96602033,182.59,182.49,1.6831]
[1736814528397,15.70572033,182.56,182.49,2.7407]
[1736814528594,12.96602033,182.56,182.44,16.33702033]
[1736814529398,12.96602033,182.56,182.49,2.7408]
[1736814529399,2.7403,182.53,182.49,2.7408]
[1736814530001,12.96602033,182.56,182.51,2.7404]
[1736814530200,12.96602033,182.59,182.51,2.7404]
[1736814531998,2.7396,182.57,182.52,2.7402]
[1736814533042,2.7396,182.57,182.53,2.7401]
[1736814536512,2.7398,182.56,182.5,2.7405]
[1736814536810,2.7398,182.56,182.47,12.96602033]
[1736814537810,2.7398,182.56,182.52,2.7403]
[1736814538304,2.7396,182.57,182.52,2.7403]
[1736814538508,12.96602033,182.59,182.51,2.7405]
[1736814539414,8.30264247,182.54,182.51,2.7405]
[1736814544118,2.7397,182.57,182.54,2.74]
[1736814544319,110.31069581,182.63,182.52,8.30264247]
[1736814544519,8.30264247,182.59,182.54,8.30264247]
[1736814544818,11.04164247,182.61,182.58,2.7393]
[1736814548417,11.04164247,182.61,182.54,8.30264247]
[1736814548624,11.04164247,182.61,182.57,2.7395]
[1736814550222,11.04164247,182.61,182.58,2.7394]
[1736814550517,8.30264247,182.59,182.58,2.7394]
[1736814552622,8.30264247,182.59,182.54,8.30264247]
[1736814552830,11.04164247,182.61,182.54,8.30264247]
[1736814553025,8.30264247,182.59,182.54,8.30264247]
[1736814553522,110.2805098,182.68,182.58,8.30264247]
[1736814553825,8.30264247,182.63,182.58,8.30264247]
[1736814554223,8.30264247,182.63,182.51,4.8665]
[1736814554424,8.30264247,182.63,182.57,8.30264247]
[1736814554831,11.04134247,182.63,182.6,2.739]
[1736814555430,11.04134247,182.63,182.57,8.30264247]
[1736814555431,8.30264247,182.63,182.57,8.30264247]
[1736814555635,8.30264247,182.63,182.61,2.739]
[1736814556829,8.30264247,182.63,182.57,8.30264247]
[1736814557128,8.30264247,182.63,182.6,2.7391]
[1736814557933,8.30264247,182.61,182.59,2.7393]
[1736814558235,8.30264247,182.61,182.51,69.78146325]
[1736814558428,8.30264247,182.54,182.51,69.78146325]
[1736814558629,8.30264247,182.52,182.51,64.91496325]
[1736814559124,8.30264247,182.52,182.47,15.91004044]
[1736814559323,8.30264247,182.52,182.47,7.60739797]
[1736814559525,8.30264247,182.5,182.46,1.5657]